fUSD/lending_fUSD_20250519
["ID","MTS","AMOUNT","RATE_DAILY","PERIOD"]
[361613875,1747641043793,-3783.63,0.00013698,2]
[361613876,1747641043804,-360.0,0.00013698,2]
[361613877,1747641043814,-1068.15,0.00013698,2]
[361613878,1747641043823,-1171.81,0.00013698,2]
[361613879,1747641043833,-420.0,0.00013698,2]
[361613880,1747641043842,-420.0,0.00013698,2]
[361613881,1747641043851,-1471.81,0.00013698,2]
[361613882,1747641043861,-19440.91,0.00013698,2]
[361613883,1747641043871,-646.12,0.00013698,2]
[361613884,1747641043881,-420.0,0.00013698,2]
[361613885,1747641043891,-439.28,0.00013698,2]
[361613886,1747641043900,-420.0,0.00013698,2]
[361613887,1747641043910,-420.0,0.00013698,2]
[361613888,1747641043919,-8485.96,0.00013698,2]
[361613889,1747641043929,-420.0,0.00013698,2]
[361613890,1747641043939,-493.66,0.00013698,2]
[361613891,1747641043948,-420.0,0.00013698,2]
[361613892,1747641043958,-1237.32,0.00013698,2]
[361613893,1747641043967,-420.0,0.00013698,2]
[361613894,1747641043976,-657.78,0.00013698,2]
[361613895,1747641043986,-1411.58,0.00013698,2]
[361613896,1747641043996,-420.0,0.00013698,2]
[361613897,1747641044006,-859.9,0.00013698,2]
[361613898,1747641044017,-400.0,0.00013698,2]
[361613899,1747641044028,-2094.29,0.00013698,2]
[361613900,1747641044037,-420.0,0.00013698,2]
[361613901,1747641044047,-500.0,0.00013698,2]
[361613902,1747641044056,-820.58,0.00013698,2]
[361613903,1747641044066,-494.57,0.00013698,2]
[361613904,1747641044075,-420.0,0.00013698,2]
[361613905,1747641044085,-420.0,0.00013698,2]
[361613906,1747641044095,-420.0,0.00013698,2]
[361613907,1747641044105,-1174.49,0.00013698,2]
[361613908,1747641044115,-609.73,0.00013698,2]
[361613909,1747641044125,-10688.02,0.00013698,2]
[361613910,1747641044135,-637.27,0.00013698,2]
[361613911,1747641044145,-420.0,0.00013698,2]
[361613912,1747641044155,-455.31384608,0.00013698,2]
[361613913,1747641044165,-1273.39,0.00013698,2]
[361613914,1747641044175,-1188.46,0.00013698,2]
[361613915,1747641044184,-452.63599658,0.00013698,2]
[361613916,1747641044194,-420.0,0.00013698,2]
[361613917,1747641044204,-420.0,0.00013698,2]
[361613918,1747641044214,-420.0,0.00013698,2]
[361613919,1747641044224,-420.0,0.00013698,2]
[361613920,1747641044234,-802.46,0.00013698,2]
[361613921,1747641044244,-360.0,0.00013698,2]
[361613922,1747641044254,-1265.83,0.00013698,2]
[361613923,1747641044264,-420.0,0.00013698,2]
[361613924,1747641044274,-2975.57,0.00013698,2]
[361613925,1747641044285,-1394.0,0.00013698,2]
[361613926,1747641044295,-93973.96,0.00013698,2]
[361613927,1747641044304,-420.0,0.00013698,2]
[361613928,1747641044314,-16755.71,0.00013698,2]
[361613929,1747641044324,-2687.13,0.00013698,2]
[361613930,1747641044334,-366.59087404,0.00013698,2]
[361613931,1747641044344,-1847.17,0.00013698,2]
[361613932,1747641044354,-420.0,0.00013698,2]
[361613933,1747641044363,-420.0,0.00013698,2]
[361613934,1747641044373,-87.75139228,0.00013698,2]
[361613935,1747641044421,-1084.78860772,0.00013698,2]
[361613936,1747641044431,-670.09,0.00013698,2]
[361613937,1747641044440,-1074.91,0.00013698,2]
[361613938,1747641044450,-1411.09,0.00013698,2]
[361613939,1747641044460,-3351.74,0.00013698,2]
[361613940,1747641044470,-507.52864189,0.00013698,2]
[361613941,1747641044479,-420.0,0.00013698,2]
[361613942,1747641044490,-360.0,0.00013698,2]
[361613943,1747641044500,-420.0,0.00013698,2]
[361613944,1747641044510,-664.97,0.00013698,2]
[361613945,1747641044519,-1207.92,0.00013698,2]
[361613946,1747641044529,-1469.06,0.00013698,2]
[361613947,1747641044540,-420.0,0.00013698,2]
[361613948,1747641044551,-1301.17,0.00013698,2]
[361613949,1747641044561,-960.35,0.00013698,2]
[361613950,1747641044571,-420.0,0.00013698,2]
[361613951,1747641044582,-1310.03,0.00013698,2]
[361613952,1747641044592,-380.0,0.00013698,2]
[361613953,1747641044602,-603.44,0.00013698,2]
[361613954,1747641044611,-166.36520591,0.00013698,2]
[361613955,1747641044623,-420.0,0.00013698,2]
[361613956,1747641044632,-1088.19,0.00013698,2]
[361613957,1747641044642,-2806.34,0.00013698,2]
[361613958,1747641044651,-480.13,0.00013698,2]
[361613959,1747641044661,-738.72,0.00013698,2]
[361613960,1747641044671,-420.0,0.00013698,2]
[361613961,1747641044680,-1211.15,0.00013698,2]
[361613962,1747641044690,-763.92,0.00013698,2]
[361613963,1747641044700,-552.35,0.00013698,2]
[361613964,1747641044710,-2583.4,0.00013698,2]
[361613965,1747641044719,-420.0,0.00013698,2]
[361613966,1747641044729,-420.0,0.00013698,2]
[361613967,1747641044738,-420.0,0.00013698,2]
[361613968,1747641044748,-395.19142048,0.00013698,2]
[361613969,1747641044761,-24.80857952,0.00013698,2]
[361613970,1747641044771,-420.0,0.00013698,2]
[361613971,1747641044780,-420.0,0.00013698,2]
[361613972,1747641044792,-172.79142048,0.00013698,2]
[361613973,1747641045338,-247.20857952,0.00013698,2]
[361613974,1747641045347,-420.0,0.00013698,2]
[361613975,1747641045357,-420.0,0.00013698,2]
[361613976,1747641045367,-1361.35,0.00013698,2]
[361613977,1747641045376,-420.0,0.00013698,2]
[361613978,1747641045386,-512.76,0.00013698,2]
[361613979,1747641045395,-436.1,0.00013698,2]
[361613980,1747641045405,-420.0,0.00013698,2]
[361613981,1747641045415,-7278.95,0.00013698,2]
[361613982,1747641045425,-1365.09,0.00013698,2]
[361613983,1747641045434,-360.0,0.00013698,2]
[361613984,1747641045444,-420.0,0.00013698,2]
[361613985,1747641045454,-828.6,0.00013698,2]
[361613986,1747641045463,-406.22977735,0.00013698,2]
[361613987,1747641045472,-710.22,0.00013698,2]
[361613988,1747641045482,-420.0,0.00013698,2]
[361613989,1747641045492,-420.0,0.00013698,2]
[361613990,1747641045501,-582.43,0.00013698,2]
[361613991,1747641045511,-420.0,0.00013698,2]
[361613992,1747641045521,-420.0,0.00013698,2]
[361613993,1747641045531,-4025.51,0.00013698,2]
[361613994,1747641045542,-2483.5,0.00013698,2]
[361613995,1747641045552,-807.27,0.00013698,2]
[361613996,1747641045561,-385.35660533,0.00013698,2]
[361613997,1747641045571,-420.0,0.00013698,2]
[361613998,1747641045580,-685.91,0.00013698,2]
[361613999,1747641045590,-770.92,0.00013698,2]
[361614000,1747641045600,-420.0,0.00013698,2]
[361614001,1747641045609,-240.9648496,0.00013698,2]
[361614002,1747641045619,-420.0,0.00013698,2]
[361614003,1747641045630,-380.0,0.00013698,2]
[361614004,1747641045639,-420.0,0.00013698,2]
[361614005,1747641045649,-421.35,0.00013698,2]
[361614006,1747641045659,-400.0,0.00013698,2]
[361614007,1747641045668,-420.0,0.00013698,2]
[361614008,1747641045678,-420.0,0.00013698,2]
[361614009,1747641045688,-2534.99,0.00013698,2]
[361614010,1747641045697,-860.82,0.00013698,2]
[361614011,1747641045707,-420.0,0.00013698,2]
[361614012,1747641045717,-360.0,0.00013698,2]
[361614013,1747641045726,-1595.69,0.00013698,2]
[361614014,1747641045736,-913.68,0.00013698,2]
[361614015,1747641045746,-420.0,0.00013698,2]
[361614016,1747641045756,-788.75,0.00013698,2]
[361614017,1747641045766,-3233.84,0.00013698,2]
[361614018,1747641045776,-420.0,0.00013698,2]
[361614019,1747641045786,-437.01,0.00013698,2]
[361614020,1747641045796,-2506.93,0.00013698,2]
[361614021,1747641045806,-420.0,0.00013698,2]
[361614022,1747641045815,-420.0,0.00013698,2]
[361614023,1747641045825,-4524.42,0.00013698,2]
[361614024,1747641045835,-420.37101778,0.00013698,2]
[361614025,1747641045844,-360.0,0.00013698,2]
[361614026,1747641045854,-5.22007296,0.00013698,2]
[361614042,1747641046386,-2200.0,0.00013698,2]
[361614043,1747641046659,-288.96,0.00013698,2]
[361614044,1747641047439,-24.76336039,0.00013698,2]
[361614045,1747641047559,-115.42656665,0.00013698,2]
[361614046,1747641047569,-360.0,0.00013698,2]
[361614047,1747641047578,-2458.78,0.00013698,2]
[361614048,1747641047590,-420.0,0.00013698,2]
[361614049,1747641047599,-938.63,0.00013698,2]
[361614050,1747641047609,-1155.67,0.00013698,2]
[361614051,1747641047618,-420.0,0.00013698,2]
[361614052,1747641047629,-360.0,0.00013698,2]
[361614053,1747641047638,-507.55,0.00013698,2]
[361614054,1747641047648,-1819.66,0.00013698,2]
[361614055,1747641047657,-360.0,0.00013698,2]
[361614056,1747641047667,-360.0,0.00013698,2]
[361614057,1747641047676,-1520.11,0.00013698,2]
[361614058,1747641047686,-366.65815389,0.00013698,2]
[361614059,1747641047695,-1350.83,0.00013698,2]
[361614060,1747641047705,-420.0,0.00013698,2]
[361614061,1747641047714,-1692.28,0.00013698,2]
[361614062,1747641047723,-420.0,0.00013698,2]
[361614063,1747641047732,-420.0,0.00013698,2]
[361614064,1747641047741,-420.0,0.00013698,2]
[361614065,1747641047751,-420.0,0.00013698,2]
[361614066,1747641047761,-420.0,0.00013698,2]
[361614067,1747641047770,-57.0171498,0.00013698,2]
[361614068,1747641047831,-488.1628502,0.00013698,2]
[361614069,1747641047840,-1000.0,0.00013698,2]
[361614070,1747641047850,-299.6740269,0.00013698,2]
[361614071,1747641048549,-782.0,0.00013698,2]
[361614072,1747641048559,-2078.5659731,0.00013698,2]
[361614073,1747641048568,-2537.23,0.00013698,2]
[361614074,1747641048578,-1152.54,0.00013698,2]
[361614075,1747641048589,-420.0,0.00013698,2]
[361614076,1747641048598,-380.0,0.00013698,2]
[361614077,1747641048607,-2004.44,0.00013698,2]
[361614078,1747641048618,-812.1,0.00013698,2]
[361614079,1747641048628,-420.0,0.00013698,2]
[361614080,1747641048638,-472.34,0.00013698,2]
[361614081,1747641048647,-420.0,0.00013698,2]
[361614082,1747641048656,-420.0,0.00013698,2]
[361614083,1747641048666,-2080.23,0.00013698,2]
[361614084,1747641048675,-360.0,0.00013698,2]
[361614085,1747641048684,-1126.41099779,0.00013698,2]
[361614086,1747641056536,-1.346e-05,0.00013698,2]
[361614087,1747641057188,-614.06943628,0.00013698,2]
[361614088,1747641184353,19413.67939384,0.000136,5]
[361614089,1747641195173,500.0,0.00025507,120]
[361614090,1747641200635,500.0,0.00025507,120]
[361614091,1747641200975,500.0,0.00027107,120]
[361614092,1747641385393,150.051915,0.000273,120]
[361614093,1747641386585,150.051915,0.000273,120]
[361614094,1747641387820,150.051915,0.000273,120]
[361614095,1747641389159,150.051915,0.000273,120]
[361614096,1747641390876,150.051915,0.000273,120]
[361614097,1747641400004,150.051915,0.000273,120]
[361614098,1747641401486,150.051915,0.000273,120]
[361614099,1747641402316,150.051915,0.000273,120]
[361614100,1747641403126,150.051915,0.000273,120]
[361614101,1747641404527,150.051915,0.000273,120]
[361614102,1747641447236,150.0,0.00027,120]
[361614103,1747641449825,10178.97216289,0.00027397,120]
[361614104,1747641459776,1027.32,0.00010388,2]
[361614105,1747641480146,1000.0,0.00027397,120]
[361614106,1747641499121,-168.96,0.00012306,2]
[361614108,1747641690496,150.0,0.00027028,120]
[361614109,1747641777622,-208.72747989,0.000118,2]
[361614110,1747641782290,-197.20596931,0.000118,2]
[361614111,1747641788512,-200.77892013,0.000118,2]
[361614112,1747641791490,-330.69286261,0.000118,2]
[361614113,1747641794023,-263.631534,0.000118,2]
[361614114,1747641796169,-167.73142838,0.000118,2]
[361614115,1747641799472,-367.65363958,0.00011706,2]
[361614116,1747641803986,-315.66829685,0.00011706,2]
[361614117,1747641809874,-246.89,0.00011706,2]
[361614118,1747641815439,-203.11,0.00011706,2]
[361614119,1747641817679,-250.0,0.00011706,2]
[361614120,1747641819215,-172.04,0.00011706,2]
[361614121,1747641821250,-221.2922797,0.00011706,2]
[361614122,1747641823349,-223.34578387,0.00011706,2]
[361614123,1747641823372,-147.13383179,0.00011706,2]
[361614124,1747641825678,-52.86616821,0.00011706,2]
[361614125,1747641825700,-189.5696726,0.000118,2]
[361614126,1747641828332,169.13,9.591e-05,2]
[361614127,1747641829843,-220.88662924,0.000118,2]
[361614128,1747641833240,-312.89406974,0.000118,2]
[361614129,1747641835563,-225.08405032,0.000118,2]
[361614130,1747641839481,-202.0,0.000118,2]
[361614131,1747641842883,-217.25474752,0.000118,2]
[361614132,1747641846782,-175.29374728,0.000118,2]
[361614133,1747641848856,-235.19760246,0.00011741,2]
[361614134,1747641855587,-173.15398828,0.00011741,2]
[361614135,1747641857801,-388.68466365,0.00011741,2]
[361614136,1747641860862,-318.62013448,0.00011741,2]
[361614137,1747641865884,-212.6402944,0.00011741,2]
[361614138,1747641867467,-45.23646073,0.00011741,2]
[361614139,1747641870529,150.0,0.00022038,120]
[361614173,1747641974515,698.98241308,0.000129,7]
[361614174,1747642039883,217.45,0.00011657,2]
[361614175,1747642050691,150.0,0.00021061,120]
[361614176,1747642053621,892.87,0.00011657,2]
[361614196,1747642161130,-68.62700478,0.000118,2]
[361614197,1747642161153,-23900.0,0.00011821,2]
[361614198,1747642161176,-200.0,0.00011822,2]
[361614199,1747642161197,-200.0,0.00011844,2]
[361614200,1747642161217,-165.17,0.00011855,2]
[361614201,1747642161236,-500.0,0.00011868,2]
[361614202,1747642161256,-250.0,0.00011887,2]
[361614203,1747642161276,-200.0,0.00011926,2]
[361614204,1747642161298,-557.47,0.00011975,2]
[361614205,1747642161318,-3822.11,0.00011979,2]
[361614206,1747642161339,-150.0,0.00011989,2]
[361614207,1747642161358,-250.0,0.00012041,2]
[361614208,1747642161378,-878.38,0.00012072,2]
[361614209,1747642161397,-183.06,0.00012076,2]
[361614210,1747642161418,-1200.0,0.00012087,2]
[361614211,1747642161439,-300.0,0.00012087,2]
[361614212,1747642161458,-1799.56,0.00012088,2]
[361614213,1747642161478,-11961.42,0.00012116,2]
[361614214,1747642161497,-150.0,0.00012148,2]
[361614215,1747642161518,-3778.13,0.00012149,2]
[361614216,1747642161538,-653.35,0.00012149,2]
[361614217,1747642161559,-1608.29,0.00012167,2]
[361614218,1747642161580,-1940.12031536,0.000122,2]
[361614219,1747642163105,-810.87968464,0.000122,2]
[361614220,1747642163138,-190.0,0.00012294,2]
[361614221,1747642163162,-11.85231536,0.00012306,2]
[361614222,1747642172330,-107.82768464,0.00012306,2]
[361614231,1747642231794,-200.0,0.00012356,2]
[361614232,1747642231804,-250.0,0.00012364,2]
[361614233,1747642231814,-166.45,0.00012364,2]
[361614234,1747642231826,-33.55,0.00012364,2]
[361614235,1747642231835,-150.06,0.00012373,2]
[361614236,1747642231844,-200.0,0.0001243,2]
[361614237,1747642231854,-1200.0,0.00012473,2]
[361614238,1747642231864,-300.0,0.00012473,2]
[361614239,1747642231874,-500.0,0.00012474,2]
[361614240,1747642231883,-80.09307989,0.00012474,2]
[361614241,1747642232010,-419.90692011,0.00012474,2]
[361614242,1747642232020,-107.59837989,0.00012474,2]
[361614244,1747642237695,-392.40162011,0.00012474,2]
[361614245,1747642237706,-42.453069,0.00012474,2]
[361614246,1747642237908,-457.546931,0.00012474,2]
[361614247,1747642237918,-500.0,0.00012474,2]
[361614248,1747642237928,-343.11723272,0.00012474,2]
[361614249,1747642237938,-500.0,0.00012474,2]
[361614250,1747642237949,-500.0,0.00012474,2]
[361614251,1747642237959,-500.0,0.00012474,2]
[361614252,1747642237968,-500.0,0.00012474,2]
[361614253,1747642237978,-500.0,0.00012474,2]
[361614254,1747642237987,-500.0,0.00012474,2]
[361614255,1747642237997,-500.0,0.00012474,2]
[361614256,1747642238006,-500.0,0.00012474,2]
[361614257,1747642238015,-500.0,0.00012474,2]
[361614258,1747642238024,-500.0,0.00012474,2]
[361614259,1747642238033,-500.0,0.00012474,2]
[361614260,1747642238043,-500.0,0.00012474,2]
[361614261,1747642238052,-500.0,0.00012474,2]
[361614262,1747642238061,-500.0,0.00012474,2]
[361614263,1747642238069,-500.0,0.00012474,2]
[361614264,1747642238079,-500.0,0.00012474,2]
[361614265,1747642238088,-500.0,0.00012474,2]
[361614266,1747642238102,-500.0,0.00012474,2]
[361614267,1747642238111,-539.63745806,0.00012474,2]
[361614268,1747642238121,-539.63745806,0.00012474,2]
[361614269,1747642238130,-539.63745806,0.00012474,2]
[361614270,1747642238139,-539.63745806,0.00012474,2]
[361614271,1747642238148,-539.63745806,0.00012474,2]
[361614273,1747642238156,-539.63745806,0.00012474,2]
[361614274,1747642238166,-539.63745806,0.00012474,2]
[361614276,1747642238175,-539.63745806,0.00012474,2]
[361614278,1747642238184,-539.63745806,0.00012474,2]
[361614279,1747642238193,-539.63745806,0.00012474,2]
[361614280,1747642238202,-539.63745806,0.00012474,2]
[361614281,1747642238211,-539.63745806,0.00012474,2]
[361614282,1747642238220,-539.63745806,0.00012474,2]
[361614283,1747642238229,-539.63745806,0.00012474,2]
[361614285,1747642238238,-539.63745806,0.00012474,2]
[361614287,1747642238247,-539.63745806,0.00012474,2]
[361614289,1747642238256,-539.63745806,0.00012474,2]
[361614291,1747642238265,-539.63745806,0.00012474,2]
[361614293,1747642238274,-539.63745806,0.00012474,2]
[361614295,1747642238283,-539.63745806,0.00012474,2]
[361614297,1747642238292,-539.63745806,0.00012474,2]
[361614299,1747642238300,-539.63745806,0.00012474,2]
[361614301,1747642238310,-539.63745806,0.00012474,2]
[361614304,1747642238319,-539.63745806,0.00012474,2]
[361614307,1747642238328,-539.63745806,0.00012474,2]
[361614310,1747642238337,-539.63745806,0.00012474,2]
[361614311,1747642238346,-539.63745806,0.00012474,2]
[361614312,1747642238355,-539.63745806,0.00012474,2]
[361614313,1747642238364,-539.63745806,0.00012474,2]
[361614314,1747642238373,-539.63745806,0.00012474,2]
[361614315,1747642238382,-539.63745806,0.00012474,2]
[361614316,1747642238391,-539.63745806,0.00012474,2]
[361614317,1747642238400,-539.63745806,0.00012474,2]
[361614318,1747642238409,-539.63745806,0.00012474,2]
[361614319,1747642238418,-533.37380899,0.00012474,2]
[361614320,1747642238427,-533.37380899,0.00012474,2]
[361614321,1747642238436,-533.37380899,0.00012474,2]
[361614322,1747642238446,-533.37380899,0.00012474,2]
[361614323,1747642238456,-533.37380899,0.00012474,2]
[361614324,1747642238465,-533.37380899,0.00012474,2]
[361614325,1747642238474,-533.37380899,0.00012474,2]
[361614326,1747642238484,-533.37380899,0.00012474,2]
[361614327,1747642238493,-533.37380899,0.00012474,2]
[361614328,1747642238502,-533.37380899,0.00012474,2]
[361614329,1747642238512,-533.37380899,0.00012474,2]
[361614330,1747642238522,-533.37380899,0.00012474,2]
[361614331,1747642238531,-533.37380899,0.00012474,2]
[361614332,1747642238540,-533.37380899,0.00012474,2]
[361614333,1747642238549,-533.37380899,0.00012474,2]
[361614334,1747642238558,-533.37380899,0.00012474,2]
[361614335,1747642238567,-533.37380899,0.00012474,2]
[361614336,1747642238576,-533.37380899,0.00012474,2]
[361614337,1747642238588,-533.37380899,0.00012474,2]
[361614338,1747642238598,-533.37380899,0.00012474,2]
[361614339,1747642238607,-533.37380899,0.00012474,2]
[361614340,1747642238619,-533.37380899,0.00012474,2]
[361614341,1747642238628,-533.37380899,0.00012474,2]
[361614342,1747642238637,-533.37380899,0.00012474,2]
[361614343,1747642238647,-533.373809,0.00012474,2]
[361614344,1747642238656,-533.373809,0.00012474,2]
[361614345,1747642238665,-533.373809,0.00012474,2]
[361614346,1747642238674,-533.373809,0.00012474,2]
[361614347,1747642238685,-533.373809,0.00012474,2]
[361614348,1747642238695,-533.373809,0.00012474,2]
[361614349,1747642238704,-533.373809,0.00012474,2]
[361614350,1747642238713,-533.37380898,0.00012474,2]
[361614351,1747642238722,-3432.21,0.00012475,2]
[361614352,1747642238731,-195.02,0.00012495,2]
[361614353,1747642238740,-2064.1874785,0.0001255,2]
[361614354,1747642238749,-184.48,0.00012568,2]
[361614355,1747642238758,-317.7523,0.00012612,2]
[361614356,1747642238768,-500.0,0.0001263,2]
[361614357,1747642238778,-308.79,0.00012631,2]
[361614358,1747642238787,-4000.0,0.0001265,2]
[361614359,1747642238796,-1027.32,0.00012652,2]
[361614360,1747642238806,-220.56,0.0001266,2]
[361614361,1747642238815,-351.06,0.00012672,2]
[361614362,1747642238824,-52390.34602679,0.00012713,2]
[361614363,1747642238835,-1000.0,0.00012723,2]
[361614364,1747642238843,-534.5,0.00012755,2]
[361614365,1747642238853,-254.51,0.00012782,2]
[361614366,1747642238864,-351.0,0.0001285,2]
[361614367,1747642238873,-256.7,0.00012877,2]
[361614368,1747642238882,-500.0,0.00012877,2]
[361614369,1747642238892,-915.67,0.00012941,2]
[361614370,1747642238902,-340.0,0.00012978,2]
[361614371,1747642238912,-250.0,0.0001298,2]
[361614372,1747642238921,-200.0,0.0001298,2]
[361614373,1747642238930,-182.14,0.00013,2]
[361614374,1747642238939,-182.14,0.00013,2]
[361614375,1747642238948,-182.14,0.00013,2]
[361614376,1747642238957,-182.14,0.00013,2]
[361614377,1747642238966,-182.14,0.00013,2]
[361614378,1747642238976,-155.0,0.00013006,2]
[361614379,1747642238985,-151.0,0.00013006,2]
[361614380,1747642238995,-151.0,0.00013006,2]
[361614381,1747642239004,-151.0,0.00013006,2]
[361614382,1747642239013,-668.65185757,0.00013006,2]
[361614383,1747642239023,-668.65185757,0.00013006,2]
[361614384,1747642239032,-156.0,0.00013006,2]
[361614385,1747642239042,-207.4,0.00013006,2]
[361614386,1747642239051,-1199.20597015,0.00013006,2]
[361614387,1747642239061,-500.0,0.00013014,2]
[361614388,1747642239071,-1452.23498749,0.00013023,2]
[361614389,1747642239081,-1521.0,0.00013029,2]
[361614390,1747642239092,-514.97,0.00013041,2]
[361614391,1747642239104,-458.06,0.00013041,2]
[361614392,1747642239114,-458.06,0.00013041,2]
[361614393,1747642239123,-458.06,0.00013041,2]
[361614394,1747642239132,-458.06,0.00013041,2]
[361614395,1747642239142,-458.06,0.00013041,2]
[361614396,1747642239151,-204.18,0.00013047,2]
[361614397,1747642239161,-150.06,0.00013054,2]
[361614398,1747642239170,-500.0,0.00013068,2]
[361614399,1747642239179,-2064.18747851,0.00013076,2]
[361614400,1747642239188,-460.28,0.00013078,2]
[361614401,1747642239198,-352.48,0.00013078,2]
[361614402,1747642239207,-170.07,0.00013078,2]
[361614403,1747642239216,-170.07,0.00013078,2]
[361614404,1747642239226,-200.0,0.000131,2]
[361614405,1747642239235,-24032.75936055,0.0001316,2]
[361614406,1747642239245,-325.42,0.00013178,2]
[361614407,1747642239254,-255.0,0.00013229,2]
[361614408,1747642239263,-500.0,0.00013233,2]
[361614409,1747642239273,-150.0,0.00013278,2]
[361614410,1747642239282,-150.051915,0.00013298,2]
[361614411,1747642239291,-150.051915,0.00013298,2]
[361614412,1747642239301,-150.051915,0.00013298,2]
[361614413,1747642239310,-150.051915,0.00013298,2]
[361614414,1747642239320,-150.051915,0.00013298,2]
[361614415,1747642239329,-547.49386349,0.00013381,2]
[361614416,1747642239339,-150.051915,0.00013398,2]
[361614417,1747642239348,-150.051915,0.00013398,2]
[361614418,1747642239357,-150.051915,0.00013398,2]
[361614419,1747642239368,-150.051915,0.00013398,2]
[361614420,1747642239377,-150.051915,0.00013398,2]
[361614421,1747642239387,-8061.6770594,0.00013399,2]
[361614422,1747642239396,-500.0,0.00013425,2]
[361614423,1747642239406,-8061.67705937,0.00013455,2]
[361614424,1747642239415,-150.051915,0.00013498,2]
[361614425,1747642239424,-150.051915,0.00013498,2]
[361614426,1747642239434,-150.051915,0.00013498,2]
[361614427,1747642239443,-150.051915,0.00013498,2]
[361614428,1747642239452,-150.051915,0.00013498,2]
[361614429,1747642239461,-1212.68612271,0.000135,2]
[361614430,1747642239471,-1187.0,0.000135,2]
[361614431,1747642239480,-1187.0,0.000135,2]
[361614432,1747642239489,-1187.0,0.000135,2]
[361614433,1747642239499,-1187.0,0.000135,2]
[361614434,1747642239508,-150.72148301,0.000135,2]
[361614435,1747642239518,-150.72148301,0.000135,2]
[361614436,1747642239527,-150.72148301,0.000135,2]
[361614437,1747642239537,-280.68889695,0.000135,2]
[361614438,1747642239547,-200.0,0.0001351,2]
[361614440,1747642239556,-8061.67705937,0.0001351,2]
[361614441,1747642239566,-500.0,0.00013534,2]
[361614442,1747642239575,-151.0,0.00013554,2]
[361614443,1747642239584,-693.3919763,0.00013554,2]
[361614444,1747642239594,-297.80306497,0.00013554,2]
[361614445,1747642239603,-8061.67705937,0.00013566,2]
[361614446,1747642239615,-500.0,0.00013589,2]
[361614447,1747642239624,-192.0499,0.00013589,2]
[361614448,1747642239634,-250.0,0.00013592,2]
[361614449,1747642239644,-200.0,0.00013592,2]
[361614450,1747642239653,-150.72148301,0.00013595,2]
[361614451,1747642239663,-4949.5274492,0.00013598,2]
[361614452,1747642239867,-150.051915,0.00013598,2]
[361614453,1747642239877,-150.051915,0.00013598,2]
[361614454,1747642239886,-150.051915,0.00013598,2]
[361614455,1747642239895,-150.051915,0.00013598,2]
[361614456,1747642239905,-150.051915,0.00013598,2]
[361614457,1747642239914,-166.55221696,0.00013598,2]
[361614458,1747642239923,-9623.28073335,0.00013598,2]
[361614459,1747642239932,-182.1523651,0.00013598,2]
[361614460,1747642239941,-1551.48329299,0.00013598,2]
[361614461,1747642239950,-267.57008339,0.00013598,2]
[361614462,1747642239959,-14286.3495,0.00013598,2]
[361614463,1747642239969,-4578.8999,0.00013598,2]
[361614464,1747642239978,-8061.67705937,0.00013622,2]
[361614465,1747642239988,-464.5636425,0.00013622,2]
[361614466,1747642239998,-9623.28073334,0.00013632,2]
[361614467,1747642240007,-5943.0,0.00013642,2]
[361614468,1747642240016,-1149.0,0.00013642,2]
[361614469,1747642240025,-267.57008339,0.00013648,2]
[361614470,1747642240037,-9623.28073334,0.00013665,2]